bitfinex-derivatives/quotes_SOLF0:USTF0_20241226
["timestamp","ask_amount","ask_price","bid_price","bid_amount"]
[1735254967458,9.94741482,187.56,187.41,9.94741482]
[1735254967653,2.6696,187.49,187.44,2.6701]
[1735254967854,2.6696,187.49,187.42,3.3]
[1735254968455,2.6696,187.49,187.44,2.6703]
[1735254968952,2.6694,187.5,187.45,2.67]
[1735254969457,2.6692,187.52,187.48,2.6697]
[1735254970556,2.6692,187.52,187.47,3.3]
[1735254970557,3.0964,187.58,187.47,3.3]
[1735254970754,3.0964,187.58,187.48,3.0781]
[1735254970957,3.0964,187.58,187.48,9.611]
[1735254971157,2.6685,187.57,187.52,2.669]
[1735254971359,9.94741482,187.59,187.53,3.3]
[1735254971556,6.2662,187.65,187.56,2.6685]
[1735254971857,6.2662,187.65,187.53,3.3]
[1735254971858,9.94741482,187.64,187.53,3.3]
[1735254972062,9.94741482,187.69,187.56,9.94741482]
[1735254972258,9.94741482,187.69,187.57,6.3299]
[1735254972456,21.60576649,187.7,187.59,9.94741482]
[1735254972656,21.60576649,187.7,187.66,2.6671]
[1735254972857,21.60576649,187.7,187.67,3.3]
[1735254973058,9.94741482,187.72,187.67,3.3]
[1735254973259,2.6667,187.7,187.67,3.3]
[1735254975458,9.94741482,187.72,187.67,3.3]
[1735254975657,12.61381482,187.72,187.67,3.3]
[1735254976660,2.6665,187.71,187.67,3.3]
[1735254977157,2.6663,187.72,187.67,3.3]
[1735254977469,9.94741482,187.75,187.67,3.3]
[1735254978563,9.94741482,187.75,187.68,2.6669]
[1735254979263,99.11697272,187.76,187.7,2.6666]
[1735254980270,99.11697272,187.76,187.71,2.6664]
[1735254980562,96.45117272,187.76,187.72,3.3]
[1735254980767,2.6659,187.75,187.72,3.3]
[1735254981166,2.6661,187.74,187.68,3.3387]
[1735254981360,96.45117272,187.76,187.71,3.3]
[1735254981761,96.45117272,187.76,187.7,3.3]
[1735254981961,2.666,187.75,187.7,3.3]
[1735254982175,96.45117272,187.76,187.7,3.3]
[1735254982571,9.94741482,187.75,187.7,3.3]
[1735254983168,2.6661,187.74,187.7,3.3]
[1735254983370,9.94741482,187.75,187.7,3.3]
[1735254983671,96.45117272,187.76,187.7,3.3]
[1735254983867,99.11687272,187.76,187.7,3.3]
[1735254985267,9.94741482,187.81,187.71,2.6663]
[1735254985469,2.6653,187.79,187.7,3.3]
[1735254986672,2.6653,187.79,187.73,2.666]
[1735254986865,2.6653,187.79,187.7,13.24741482]
[1735254987865,3.2011,187.82,187.67,3.2615]
[1735254987866,2.6658,187.76,187.67,13.20891482]
[1735254988070,9.94741482,187.81,187.67,13.20891482]
[1735254988267,9.94741482,187.81,187.68,3.3]
[1735254988466,2.6661,187.74,187.69,2.6667]
[1735254988866,9.94741482,187.81,187.67,13.20891482]
[1735254989069,2.6663,187.72,187.68,5.9668]
[1735254989579,2.6662,187.73,187.69,2.6666]
[1735254990276,2.6659,187.75,187.68,5.9668]
[1735254990474,9.94741482,187.78,187.68,5.9668]
[1735254990976,2.6662,187.73,187.69,2.6667]
[1735254993680,2.666,187.74,187.69,2.6667]
[1735254996274,9.94741482,187.75,187.53,5.338]
[1735254996479,9.94741482,187.75,187.64,3.3]
[1735254996681,9.94741482,187.72,187.64,3.3]
[1735254996887,9.94741482,187.72,187.6,6.4961]
[1735254997086,9.94741482,187.72,187.64,3.3]
[1735254997282,9.94741482,187.69,187.64,3.3]
[1735254998482,2.6673,187.65,187.64,3.3]
[1735255001182,9.94741482,187.66,187.53,16.29181482]
[1735255001388,9.94741482,187.66,187.54,3.3]
[1735255001788,2.668,187.6,187.55,2.6686]
[1735255002987,2.6682,187.59,187.55,2.6686]
[1735255003392,2.6682,187.59,187.56,3.3]
[1735255003592,2.6684,187.58,187.57,3.3]
[1735255003791,9.94741482,187.63,187.52,3.0798]
[1735255003992,9.94741482,187.63,187.53,3.3]
[1735255004185,9.94741482,187.63,187.52,3.0798]
[1735255004493,9.94741482,187.6,187.53,3.3]
[1735255004895,2.6689,187.54,187.53,3.3]
[1735255005194,2.6689,187.54,187.52,3.0798]
[1735255005195,2.6689,187.54,187.52,6.3798]
[1735255007595,2.6687,187.55,187.52,6.3798]
[1735255007797,9.94741482,187.6,187.52,6.3798]
[1735255009594,2.6686,187.56,187.52,6.3798]
[1735255010896,2.668,187.6,187.54,2.6688]
[1735255011097,2.668,187.6,187.53,6.5616]
[1735255011496,2.6682,187.59,187.55,2.6686]
[1735255011697,9.94741482,187.66,187.53,6.5616]
[1735255012096,2.668,187.6,187.53,6.5616]
[1735255013499,9.94741482,187.66,187.53,6.5616]
[1735255014401,2.6683,187.59,187.55,2.6687]
[1735255019899,2.6683,187.59,187.53,6.5616]
[1735255020106,2.6683,187.59,187.56,2.6686]
[1735255020303,2.6683,187.59,187.57,3.3]
[1735255020707,2.6687,187.56,187.53,9.2306]
[1735255021004,9.94741482,187.62,187.54,3.3]
[1735255021804,9.94741482,187.59,187.47,3.0679]
[1735255022004,9.94741482,187.59,187.5,3.3]
[1735255022209,9.94741482,187.59,187.47,5.7377]
[1735255022506,9.94741482,187.59,187.5,3.3]
[1735255023810,2.6692,187.52,187.5,3.3]
[1735255024618,2.669,187.53,187.5,3.3]
[1735255026212,9.94741482,187.59,187.5,3.3]
[1735255026406,3.2125,187.61,187.5,3.3]
[1735255026911,2.6683,187.58,187.54,2.6688]
[1735255027111,2.6683,187.58,187.55,3.3]
[1735255027308,2.6678,187.62,187.55,3.3]
[1735255027705,2.6678,187.62,187.56,3.3407]
[1735255028306,2.6676,187.63,187.58,2.6683]
[1735255029406,2.6674,187.65,187.59,2.668]
[1735255029614,9.94741482,187.69,187.6,3.3]
[1735255030110,2.667,187.68,187.62,2.6677]
[1735255030305,9.94741482,187.69,187.62,2.6677]
[1735255031008,9.94741482,187.69,187.6,3.3]
[1735255031209,9.94741482,187.72,187.6,3.3]
[1735255031511,2.6669,187.68,187.61,3.1106]
[1735255031812,9.94741482,187.72,187.62,2.6677]
[1735255032013,2.6669,187.68,187.62,2.6677]
[1735255032314,2.6669,187.68,187.64,2.6674]
[1735255032503,2.6669,187.68,187.65,3.3]
[1735255033307,2.6666,187.7,187.65,3.3]
[1735255034013,9.94741482,187.72,187.65,3.3]
[1735255034014,2.6667,187.69,187.65,5.9672]
[1735255034311,2.6667,187.69,187.65,3.3]
[1735255034714,2.667,187.68,187.66,3.3]
[1735255035615,2.6668,187.69,187.66,3.3]
[1735255036725,2.6669,187.68,187.66,3.3]
[1735255037506,9.94741482,187.72,187.66,3.3]
[1735255037507,2.6667,187.69,187.66,3.3]
[1735255038620,2.667,187.68,187.66,3.3]
[1735255039218,2.6667,187.7,187.66,3.3]
[1735255039418,9.94741482,187.72,187.66,3.3]
[1735255039923,2.6667,187.69,187.66,3.3]
[1735255040919,2.6669,187.68,187.66,3.3]
[1735255041120,9.94741482,187.72,187.66,3.3]
[1735255041320,9.94741482,187.72,187.65,3.3]
[1735255042221,2.6671,187.66,187.65,3.3]
[1735255043114,2.6669,187.68,187.65,3.3]
[1735255043312,9.94741482,187.72,187.65,3.3]
[1735255044223,2.6668,187.69,187.65,3.3]
[1735255044817,9.94741482,187.72,187.65,3.3]
[1735255045021,2.6669,187.68,187.65,3.3]
[1735255046217,9.94741482,187.72,187.65,3.3]
[1735255047024,2.6671,187.66,187.65,3.3]
[1735255047722,2.6673,187.65,187.64,3.3]
[1735255050818,9.94741482,187.72,187.58,9.94741482]
[1735255051023,9.94741482,187.69,187.57,6.366]
[1735255051424,9.94741482,187.66,187.45,142.70081163]
[1735255051627,2.6683,187.59,187.57,3.3]
[1735255051826,9.94741482,187.63,187.5,6.4775]
[1735255052128,9.94741482,187.63,187.54,3.3]
[1735255052333,9.94741482,187.63,187.55,3.3]
[1735255052829,2.6686,187.56,187.55,3.3]
[1735255053028,9.94741482,187.63,187.55,3.3]
[1735255053729,2.6685,187.57,187.55,3.3]
[1735255054125,2.9138,187.67,187.55,3.3]
[1735255054331,2.6675,187.64,187.55,13.24741482]
[1735255054630,13.16831482,187.68,187.55,13.24741482]
[1735255055425,2.6674,187.65,187.55,13.24741482]
[1735255055621,13.16831482,187.68,187.55,13.24741482]
[1735255056530,2.6675,187.64,187.59,2.668]
[1735255056721,2.6675,187.64,187.6,3.3]
[1735255060738,2.6676,187.63,187.6,3.3]
[1735255063329,9.94741482,187.73,187.6,3.3]
[1735255063547,21.60576649,187.74,187.61,19.61481482]
[1735255063744,2.6663,187.73,187.68,2.6668]
[1735255063934,2.6663,187.73,187.69,3.3]
[1735255064630,2.6663,187.73,187.69,5.9667]
[1735255064837,2.666,187.74,187.69,3.3]
[1735255065935,2.666,187.74,187.7,2.6666]
[1735255067141,2.6662,187.73,187.69,5.9667]
[1735255067729,9.94741482,187.76,187.7,3.3]
[1735255068643,2.666,187.75,187.7,3.3]
[1735255068936,9.94741482,187.76,187.7,3.3]
[1735255069239,3.1946,187.77,187.7,3.3]
[1735255069836,3.1946,187.77,187.71,2.6664]
[1735255070636,2.6659,187.75,187.71,2.6664]
[1735255070837,3.1946,187.77,187.71,2.6664]
[1735255071837,2.6658,187.76,187.71,2.6664]
[1735255073447,2.6656,187.77,187.7,3.3]
[1735255074149,71.55003297,187.79,187.7,3.3]
[1735255074339,71.55003297,187.79,187.72,2.6663]
[1735255076146,61.60261815,187.79,187.73,2.666]
[1735255079852,61.60261815,187.79,187.72,2.6663]
[1735255080752,61.60261815,187.79,187.71,2.6664]
[1735255081050,71.55003297,187.79,187.69,6.6012]
[1735255081254,71.55003297,187.79,187.72,3.3]
[1735255082149,9.94741482,187.76,187.64,9.94741482]
[1735255082353,9.94741482,187.76,187.65,3.3]
[1735255083454,9.94741482,187.76,187.66,2.667]
[1735255087849,9.94741482,187.76,187.67,3.3]
[1735255091856,9.94741482,187.76,187.67,5.967]
[1735255092255,6.35068823,187.74,187.67,5.967]
[1735255093454,61.60261815,187.79,187.69,2.6666]
[1735255093655,6.35068823,187.77,187.68,6.35068823]
[1735255093955,61.60261815,187.79,187.73,2.666]
[1735255094258,24.93316649,187.82,187.74,3.3]
[1735255094458,31.28385472,187.82,187.74,9.65068823]
[1735255095153,2.6653,187.8,187.76,2.6657]
[1735255095356,3.13,187.87,187.76,6.35068823]
[1735255095553,6.35068823,187.84,187.76,6.35068823]
[1735255096057,6.35068823,187.85,187.76,6.35068823]
[1735255096259,2.6646,187.85,187.79,2.6652]
[1735255096460,2.6646,187.85,187.8,3.3]
[1735255096755,9.91175318,187.88,187.8,3.3]
[1735255096961,24.72216649,187.9,187.8,3.3]
[1735255097456,24.72216649,187.9,187.83,2.6647]
[1735255098056,2.6639,187.89,187.83,2.6647]
[1735255098761,2.6641,187.88,187.83,2.6647]
[1735255098957,3.1164,187.9,187.78,2.6653]
[1735255099158,3.1164,187.9,187.79,3.3]
[1735255099663,3.1164,187.9,187.82,2.6648]
[1735255101477,2.6641,187.88,187.82,2.6648]
[1735255102365,3.1164,187.9,187.83,2.6647]
[1735255102564,3.1164,187.9,187.84,3.3]
[1735255102767,2.6641,187.88,187.84,3.3]
[1735255103169,3.1164,187.9,187.84,5.9645]
[1735255103665,3.1164,187.9,187.84,3.3]
[1735255103866,3.1164,187.9,187.77,9.91175318]
[1735255104165,3.1164,187.9,187.78,3.3]
[1735255104360,3.1164,187.9,187.79,2.6653]
[1735255104763,3.1164,187.9,187.78,3.3]
[1735255105561,2.664,187.89,187.83,2.6646]
[1735255105861,2.664,187.89,187.84,3.3]
[1735255106966,2.6641,187.88,187.84,3.3]
[1735255107164,3.1164,187.9,187.77,9.91175318]
[1735255107366,9.91175318,187.89,187.78,3.3]
[1735255107964,2.6647,187.83,187.79,2.6653]
[1735255108163,9.91175318,187.89,187.79,2.6653]
[1735255109165,9.91175318,187.89,187.8,3.3]
[1735255111469,2.6649,187.82,187.8,3.3]
[1735255112571,2.6646,187.84,187.8,3.3]
[1735255112773,9.91175318,187.89,187.8,3.3]
[1735255112968,2.6643,187.87,187.81,2.665]
[1735255113169,9.91175318,187.94,187.8,13.21175318]
[1735255113374,0.85387109,187.93,187.8,13.21175318]
[1735255113576,0.85387109,187.93,187.84,2.6645]
[1735255113577,2.664,187.89,187.84,2.6645]
[1735255113877,2.664,187.89,187.85,3.28]
[1735255114079,2.664,187.89,187.86,3.28]
[1735255115073,2.664,187.88,187.86,3.28]
[1735255115770,9.91175318,187.94,187.86,3.28]
[1735255116772,2.6641,187.88,187.86,3.28]
[1735255117673,2.6639,187.9,187.86,3.28]
[1735255118277,2.6639,187.89,187.86,3.28]
[1735255118474,6.33919426,187.91,187.86,3.28]
[1735255118875,2.6642,187.87,187.86,3.28]
[1735255119079,6.33919426,187.87,187.83,3.28]
[1735255119576,6.33919426,187.85,187.81,3.28]
[1735255119780,2.665,187.82,187.77,9.00469426]
[1735255120080,6.33919426,187.85,187.78,3.28]
[1735255120573,2.6647,187.83,187.78,3.28]
[1735255120774,6.33919426,187.85,187.78,3.28]
[1735255120977,6.33919426,187.81,187.77,3.28]
[1735255121678,2.6654,187.79,187.77,3.28]
[1735255122072,6.33919426,187.81,187.77,3.28]
[1735255122272,3.3317,187.87,187.71,12.58183525]
[1735255122273,9.91553525,187.84,187.71,12.58183525]
[1735255122478,9.91553525,187.81,187.72,3.28]
[1735255122878,2.6658,187.76,187.72,3.28]
[1735255123478,2.6656,187.77,187.72,3.28]
[1735255124574,9.91553525,187.81,187.7,9.8905]
[1735255124775,2.6657,187.76,187.71,5.9464]
[1735255127281,2.6657,187.76,187.72,3.28]
[1735255127779,9.91553525,187.81,187.72,3.28]
[1735255127983,2.6659,187.75,187.72,3.28]
[1735255130074,9.91553525,187.81,187.7,6.499]
[1735255130279,9.91553525,187.81,187.71,3.28]
[1735255130483,9.91553525,187.81,187.69,55.44]
[1735255130484,9.91553525,187.78,187.69,55.44]
[1735255130677,2.6666,187.71,187.69,55.44]
[1735255130873,2.6666,187.71,187.7,3.28]
[1735255132276,3.2695,187.77,187.65,9.91553525]
[1735255132583,9.91553525,187.72,187.66,3.28]
[1735255132780,9.91553525,187.72,187.65,3.28]
[1735255133881,2.667,187.68,187.65,3.28]
[1735255134987,2.667,187.67,187.65,3.28]
[1735255136587,9.91553525,187.72,187.59,3.3534]
[1735255136588,2.6675,187.64,187.59,6.0215]
[1735255136788,9.91553525,187.69,187.6,3.28]
[1735255138593,9.91553525,187.72,187.6,3.28]
[1735255139092,2.667,187.68,187.63,2.6676]
[1735255139283,9.91553525,187.72,187.63,2.6676]
[1735255140593,2.667,187.67,187.63,2.6676]
[1735255140888,9.91553525,187.72,187.6,3.28]
[1735255141492,2.6669,187.68,187.63,2.6675]
[1735255142018,2.6668,187.69,187.64,2.6674]
[1735255142201,6.34967994,187.75,187.68,6.34967994]
[1735255142420,21.60576649,187.85,187.7,6.34967994]
[1735255142645,2.6656,187.78,187.71,3.28]
[1735255142802,6.34967994,187.79,187.72,6.34967994]
[1735255142996,6.34967994,187.77,187.71,6.393]
[1735255143194,6.34967994,187.79,187.72,6.34967994]
[1735255143394,6.34967994,187.81,187.74,6.34967994]
[1735255143792,61.5942643,187.82,187.71,3.113]
[1735255143793,6.34967994,187.79,187.71,3.113]
[1735255143993,6.34967994,187.77,187.71,6.393]
[1735255144195,9.92147668,187.78,187.71,6.393]
[1735255144397,9.92147668,187.78,187.71,3.28]
[1735255146400,2.6659,187.75,187.71,3.28]
[1735255146997,2.6661,187.74,187.69,2.6667]
[1735255147297,9.92147668,187.78,187.7,3.28]
[1735255147688,2.6663,187.73,187.7,3.28]
[1735255148696,2.6664,187.71,187.7,3.28]
[1735255149090,9.92147668,187.75,187.68,3.28]
[1735255149295,9.92147668,187.75,187.67,3.28]
[1735255149699,9.92147668,187.75,187.66,3.28]
[1735255149898,2.6671,187.66,187.65,3.28]
[1735255150599,2.6666,187.7,187.65,3.28]
[1735255150799,9.92147668,187.72,187.65,3.28]
[1735255151512,9.92147668,187.75,187.65,5.9473]
[1735255151798,2.6667,187.69,187.65,3.28]
[1735255152189,9.92147668,187.75,187.65,3.28]
[1735255152398,9.92147668,187.72,187.64,3.28]
[1735255152996,2.6669,187.69,187.64,5.9473]
[1735255153196,9.92147668,187.75,187.64,3.28]
[1735255153803,9.92147668,187.75,187.65,3.28]
[1735255154406,2.6664,187.72,187.67,2.667]
[1735255154594,6.2272,187.77,187.67,2.667]
[1735255155021,2.6664,187.71,187.66,2.6671]
[1735255155601,6.2272,187.77,187.65,3.28]
[1735255155800,2.6666,187.7,187.65,5.9473]
[1735255156611,2.6668,187.69,187.65,3.28]
[1735255156799,9.92147668,187.75,187.65,3.28]
[1735255158514,9.92147668,187.75,187.65,5.9473]
[1735255159519,2.6667,187.69,187.65,3.28]
[1735255161415,2.6665,187.71,187.66,2.667]
[1735255163717,3.073,187.77,187.65,3.28]
[1735255163922,12.82987668,187.81,187.66,13.02287668]
[1735255164320,2.6659,187.75,187.71,2.6663]
[1735255164620,2.6659,187.75,187.72,3.28]
[1735255165217,2.6659,187.75,187.71,2.6663]
[1735255165421,12.82987668,187.81,187.72,3.28]
[1735255167517,9.92147668,187.78,187.72,3.28]
[1735255168118,2.6662,187.73,187.72,3.28]
[1735255169128,9.92147668,187.78,187.72,3.28]
[1735255169426,2.6658,187.76,187.72,3.28]
[1735255171625,12.82987668,187.81,187.72,3.28]
[1735255171826,2.6659,187.75,187.72,3.28]
[1735255173226,12.82987668,187.81,187.72,3.28]
[1735255173439,9.92147668,187.78,187.72,3.28]
[1735255174121,2.6662,187.73,187.72,3.28]
[1735255174322,6.34932179,187.76,187.72,3.28]
[1735255174520,6.34932179,187.76,187.71,3.28]
[1735255175026,2.6662,187.73,187.71,3.28]
[1735255177325,2.6658,187.76,187.71,3.28]
[1735255178130,2.6659,187.75,187.71,5.9464]
[1735255178325,6.34932179,187.78,187.71,3.28]
[1735255178529,6.34932179,187.8,187.72,6.34932179]
[1735255178930,2.6657,187.77,187.73,2.666]
[1735255180432,2.6658,187.76,187.73,2.666]
[1735255181233,2.6655,187.78,187.74,2.666]
[1735255181434,2.9041,187.87,187.74,6.34932179]
[1735255181630,6.34932179,187.83,187.75,3.1114]
[1735255181935,6.34932179,187.83,187.76,3.28]
[1735255182136,15.18236147,187.89,187.76,9.62932179]
[1735255182325,6.34932179,187.85,187.76,9.62932179]
[1735255182527,6.34932179,187.85,187.78,6.34932179]
[1735255182828,3.1268,187.89,187.78,6.34932179]
[1735255183132,6.34932179,187.85,187.77,6.34932179]
[1735255184029,6.34932179,187.85,187.78,2.6653]
[1735255184227,9.9111874,187.88,187.78,2.6653]
[1735255184424,9.9111874,187.88,187.76,3.28]
[1735255185432,2.6642,187.87,187.82,2.6648]
[1735255185632,2.6642,187.87,187.83,3.28]
[1735255185930,2.6642,187.87,187.84,3.28]
[1735255186836,2.6641,187.88,187.84,3.28]
[1735255187133,9.9111874,187.91,187.84,3.28]
[1735255187334,12.9955874,187.94,187.84,3.28]
[1735255187934,9.9111874,187.94,187.84,3.28]
[1735255188134,9.9111874,187.94,187.85,3.2019]
[1735255188531,2.6636,187.91,187.87,2.6641]
[1735255188741,2.6636,187.91,187.85,3.2019]
[1735255189534,2.6636,187.91,187.86,2.6643]
[1735255190433,9.9111874,187.94,187.87,3.28]
[1735255191238,2.6635,187.92,187.87,3.28]
[1735255191533,9.9111874,187.94,187.87,3.28]
[1735255193141,2.6639,187.9,187.87,3.28]
[1735255194644,2.6639,187.89,187.87,3.28]
[1735255195547,9.9111874,187.94,187.87,3.28]
[1735255195548,2.664,187.88,187.87,3.28]
[1735255195749,9.9111874,187.94,187.86,3.28]
[1735255196446,2.6643,187.87,187.86,3.28]
[1735255196646,9.9111874,187.91,187.82,3.28]
[1735255196949,3.3208,187.9,187.82,3.28]
[1735255197144,2.6646,187.85,187.82,3.28]
[1735255197938,9.9111874,187.88,187.75,13.2086874]
[1735255198257,9.9111874,187.88,187.76,3.28]
[1735255198645,2.6645,187.85,187.77,2.6655]
[1735255198847,9.9111874,187.88,187.77,2.6655]
[1735255199453,2.6645,187.85,187.77,2.6655]
[1735255199646,9.9111874,187.88,187.77,2.6655]
[1735255200950,9.9111874,187.88,187.76,3.28]
[1735255201251,3.3208,187.9,187.78,9.9111874]
[1735255201448,3.3208,187.9,187.84,2.6646]
[1735255201745,9.9111874,187.94,187.85,3.28]
[1735255201954,3.3513,187.95,187.85,3.28]
[1735255203148,2.6635,187.92,187.87,2.6641]
[1735255204956,2.6636,187.91,187.87,2.6641]
[1735255206756,2.6638,187.9,187.87,2.6641]
[1735255208957,2.6636,187.91,187.88,2.664]
[1735255209154,2.6636,187.91,187.86,6.3373196]
[1735255209861,2.6636,187.91,187.87,2.664]
[1735255210762,2.6635,187.92,187.89,2.6638]
[1735255210962,6.3373196,187.96,187.9,3.28]
[1735255211262,2.6633,187.94,187.9,3.28]
[1735255211763,2.6634,187.93,187.9,3.28]
[1735255212057,6.3373196,187.94,187.9,3.28]
[1735255212464,2.6633,187.93,187.9,3.28]
[1735255214358,2.6632,187.94,187.9,5.9437]
[1735255214556,6.3373196,187.96,187.9,3.28]
[1735255214959,2.6633,187.94,187.9,3.28]
[1735255215159,6.3373196,187.94,187.91,3.28]
[1735255215361,6.3373196,187.92,187.75,60.91328284]
[1735255215561,2.6647,187.84,187.82,3.28]
[1735255215763,6.3373196,187.88,187.82,3.28]
[1735255216163,6.3373196,187.89,187.83,2.6646]
[1735255216361,6.3373196,187.89,187.82,3.28]
[1735255216564,6.3373196,187.87,187.82,3.28]
[1735255217965,2.6645,187.85,187.82,3.28]
[1735255218162,6.3373196,187.87,187.82,3.28]
[1735255218570,2.6643,187.86,187.82,3.28]
[1735255218771,6.3373196,187.89,187.82,3.28]
[1735255218968,6.3373196,187.87,187.82,3.28]
[1735255219169,6.3373196,187.85,187.82,3.28]
[1735255219373,9.7043196,187.91,187.83,6.3373196]
[1735255220073,2.664,187.89,187.84,2.6645]
[1735255220470,9.7043196,187.91,187.83,6.3373196]
[1735255220677,6.3373196,187.85,187.82,3.28]
[1735255221372,6.3373196,187.87,187.82,3.28]
[1735255222469,2.6646,187.85,187.82,3.28]
[1735255222875,2.6641,187.88,187.83,2.6647]
[1735255223082,6.3373196,187.93,187.85,6.3373196]
[1735255224075,2.6633,187.94,187.87,6.3373196]
[1735255224273,2.6633,187.94,187.88,3.28]
[1735255224473,2.6633,187.94,187.89,2.6639]
[1735255225780,6.3373196,187.97,187.89,6.3373196]
[1735255225979,6.3373196,187.99,187.91,6.3373196]
[1735255226278,40.93792484,188.02,187.88,13.17715835]
[1735255226676,2.6627,187.98,187.92,2.6633]
[1735255226877,2.6627,187.98,187.93,3.28]
[1735255228081,16.42695835,188.02,187.93,3.28]
[1735255228279,3.3408,188.02,187.93,3.28]
[1735255229282,2.6623,188.0,187.94,2.6631]
[1735255229487,13.23795835,188.02,187.93,3.28]
[1735255230991,2.6626,187.98,187.93,5.9433]
[1735255231588,2.6628,187.97,187.93,3.28]
[1735255233389,13.23795835,188.02,187.93,3.28]
[1735255233596,2.663,187.96,187.93,3.28]
[1735255236987,9.89715835,187.99,187.84,6.3637]
[1735255237293,9.89715835,187.96,187.85,3.3]
[1735255237496,2.664,187.89,187.85,5.9644]
[1735255237889,9.89715835,187.96,187.85,5.9644]
[1735255238089,2.664,187.89,187.85,5.9644]
[1735255238294,2.664,187.89,187.86,2.6643]
[1735255239092,9.89715835,187.96,187.86,2.6643]
[1735255239093,2.6638,187.9,187.86,2.6643]
[1735255242297,2.6638,187.9,187.87,2.6641]
[1735255242494,9.89715835,187.96,187.85,3.3]
[1735255243002,9.89715835,187.96,187.88,2.664]
[1735255243202,2.9017,187.97,187.85,3.3]
[1735255243402,2.9017,187.97,187.89,2.6638]
[1735255243598,2.6634,187.93,187.9,3.3]
[1735255244303,2.6632,187.94,187.9,3.3]
[1735255244601,3.2967,187.98,187.9,3.3]
[1735255244792,2.6628,187.97,187.91,2.6635]
[1735255244997,2.6628,187.97,187.9,3.3]
[1735255245403,2.6628,187.97,187.93,2.6633]
[1735255248901,6.33489967,188.01,187.94,6.33489967]
[1735255249102,6.33489967,188.01,187.95,3.3]
[1735255249405,12.06631539,188.07,187.95,3.3]
[1735255249406,3.99637639,188.07,187.96,6.33489967]
[1735255249607,6.33489967,188.04,187.96,6.33489967]
[1735255250405,2.6619,188.03,187.99,2.6623]
[1735255250607,2.6619,188.03,187.96,6.33489967]
[1735255251300,2.6619,188.03,187.98,2.6625]
[1735255253905,2.6618,188.04,188.0,2.6623]
[1735255254203,2.6618,188.04,188.01,3.3]
[1735255254408,2.6617,188.05,188.01,3.3]
[1735255255503,2.6617,188.05,188.01,5.9621]
[1735255256907,2.6617,188.05,188.01,3.3]
[1735255257106,9.89153918,188.07,188.01,3.3]
[1735255258104,2.6618,188.04,188.01,3.3]
[1735255261915,2.6612,188.08,188.04,2.6617]
[1735255262110,28.76064202,188.13,188.01,3.3]
[1735255262312,22.46067024,188.12,188.01,3.3]
[1735255262513,21.60576649,188.12,188.01,3.3]
[1735255262815,21.60576649,188.12,188.05,2.6615]
[1735255263009,21.60576649,188.12,188.06,3.26]
[1735255264009,3.16,188.13,188.06,3.26]
[1735255268516,3.16,188.13,188.06,5.9215]
[1735255270107,3.16,188.13,188.06,3.26]
[1735255270509,3.16,188.13,188.0,9.732]
[1735255270712,9.89153918,188.1,188.0,3.26]
[1735255270913,9.89153918,188.07,187.99,3.26]
[1735255272214,6.33106377,188.03,187.99,3.26]
[1735255273515,6.33106377,188.05,187.98,2.6626]
[1735255273715,6.33106377,188.05,187.99,3.26]
[1735255274521,6.33106377,188.03,187.99,3.26]
[1735255276421,6.33106377,188.05,187.99,3.26]
[1735255277721,2.9013,188.09,187.99,3.26]
[1735255277722,6.33106377,188.03,187.99,3.26]
[1735255278817,6.33106377,188.05,187.99,3.26]